[Event "Titled Tuesday Blitz August 08 Late 2023"]
[White "Donchenko, Alexander"]
[Black "Krishnan, Varun"]
[WhiteFideId "24603295"]
[BlackFideId "5054508"]
[WhiteElo "2835"]
[BlackElo "2574"]
[Result "1-0"]
[Round "4"]
[TimeControl "180+1"]
[Date "2023.08.08"]
[WhiteClock "0:00:33"]
[BlackClock "0:00:06"]
[Board "39"]

1. d4 {[%clk 0:03:00]}  a6 {[%clk 0:03:00]} 2. e4 {[%clk 0:03:00]}  e6 {[%clk 0:03:01]} 3. Nd2 {[%clk 0:03:00]}  d5 {[%clk 0:02:59]} 4. Ngf3 {[%clk 0:03:00]}  c5 {[%clk 0:02:53]} 5. exd5 {[%clk 0:02:59]}  exd5 {[%clk 0:02:53]} 6. Be2 {[%clk 0:02:58]}  Nc6 {[%clk 0:02:53]} 7. O-O {[%clk 0:02:57]}  Nf6 {[%clk 0:02:49]} 8. Re1 {[%clk 0:02:56]}  Be6 {[%clk 0:02:45]} 9. dxc5 {[%clk 0:02:54]}  Bxc5 {[%clk 0:02:44]} 10. Nb3 {[%clk 0:02:55]}  Ba7 {[%clk 0:02:43]} 11. Nbd4 {[%clk 0:02:52]}  O-O {[%clk 0:02:38]} 12. h3 {[%clk 0:02:47]}  Ne4 {[%clk 0:02:36]} 13. Be3 {[%clk 0:02:46]}  Qf6 {[%clk 0:02:25]} 14. c3 {[%clk 0:02:44]}  Rfe8 {[%clk 0:02:16]} 15. Qd3 {[%clk 0:02:43]}  Rac8 {[%clk 0:02:04]} 16. Rad1 {[%clk 0:02:42]}  Bb8 {[%clk 0:01:47]} 17. Nxc6 {[%clk 0:02:36]}  Rxc6 {[%clk 0:01:42]} 18. Bd4 {[%clk 0:02:34]}  Qf4 {[%clk 0:01:38]} 19. Qe3 {[%clk 0:02:28]}  Qc7 {[%clk 0:00:56]} 20. Be5 {[%clk 0:02:27]}  Qa5 {[%clk 0:00:57]} 21. Bxb8 {[%clk 0:02:25]}  Rxb8 {[%clk 0:00:58]} 22. Nd4 {[%clk 0:02:24]}  Rd6 {[%clk 0:00:57]} 23. Qf4 {[%clk 0:02:08]}  Rbd8 {[%clk 0:00:50]} 24. Bf3 {[%clk 0:02:06]}  Nf6 {[%clk 0:00:49]} 25. a3 {[%clk 0:01:58]}  Qb6 {[%clk 0:00:46]} 26. Rd2 {[%clk 0:01:57]}  h6 {[%clk 0:00:44]} 27. Rde2 {[%clk 0:01:56]}  Re8 {[%clk 0:00:41]} 28. Nf5 {[%clk 0:01:51]}  Rdd8 {[%clk 0:00:34]} 29. Nxh6+ {[%clk 0:01:49]}  Kf8 {[%clk 0:00:34]} 30. Ng4 {[%clk 0:01:36]}  Bxg4 {[%clk 0:00:30]} 31. hxg4 {[%clk 0:01:35]}  Rxe2 {[%clk 0:00:30]} 32. Rxe2 {[%clk 0:01:35]}  d4 {[%clk 0:00:30]} 33. g5 {[%clk 0:01:32]}  Nd5 {[%clk 0:00:28]} 34. Qh4 {[%clk 0:01:22]}  Kg8 {[%clk 0:00:24]} 35. cxd4 {[%clk 0:00:42]}  Qc6 {[%clk 0:00:15]} 36. g3 {[%clk 0:00:35]}  Qc1+ {[%clk 0:00:10]} 37. Kg2 {[%clk 0:00:36]}  Nc7 {[%clk 0:00:11]} 38. g6 {[%clk 0:00:34]}  Ne6 {[%clk 0:00:06]} 39. Rxe6 {[%clk 0:00:33]} 1-0


[Site "https://www.chess.com"]

[Event "Titled Tuesday Blitz August 08 Late 2023"]
[White "Adan Bermudez, Sergio"]
[Black "ProphetReborn"]
[WhiteFideId "2292726"]
[WhiteElo "2569"]
[BlackElo "2831"]
[Result "1/2-1/2"]
[Round "4"]
[TimeControl "180+1"]
[Date "2023.08.08"]
[WhiteClock "0:00:06"]
[BlackClock "0:00:04"]
[Board "40"]

1. c4 {[%clk 0:02:59]}  Nf6 {[%clk 0:02:59]} 2. Nc3 {[%clk 0:02:59]}  e5 {[%clk 0:02:59]} 3. e4 {[%clk 0:03:00]}  Nc6 {[%clk 0:02:59]} 4. Nf3 {[%clk 0:03:00]}  Bb4 {[%clk 0:02:58]} 5. Bd3 {[%clk 0:02:47]}  O-O {[%clk 0:02:58]} 6. O-O {[%clk 0:02:47]}  d6 {[%clk 0:02:58]} 7. h3 {[%clk 0:02:47]}  a5 {[%clk 0:02:55]} 8. a3 {[%clk 0:02:45]}  Bc5 {[%clk 0:02:54]} 9. Be2 {[%clk 0:02:45]}  h6 {[%clk 0:02:31]} 10. d3 {[%clk 0:02:40]}  Nd4 {[%clk 0:02:24]} 11. Be3 {[%clk 0:02:34]}  c6 {[%clk 0:02:24]} 12. Rb1 {[%clk 0:02:25]}  Bd7 {[%clk 0:02:15]} 13. b4 {[%clk 0:02:19]}  axb4 {[%clk 0:02:14]} 14. axb4 {[%clk 0:02:20]}  Ba7 {[%clk 0:02:14]} 15. b5 {[%clk 0:02:07]}  Bc5 {[%clk 0:02:12]} 16. bxc6 {[%clk 0:02:01]}  bxc6 {[%clk 0:02:10]} 17. Bxd4 {[%clk 0:01:54]}  exd4 {[%clk 0:02:10]} 18. Na4 {[%clk 0:01:54]}  Ba7 {[%clk 0:02:09]} 19. Qb3 {[%clk 0:01:39]}  Qa5 {[%clk 0:02:08]} 20. Ra1 {[%clk 0:01:28]}  Rfb8 {[%clk 0:02:07]} 21. Qc2 {[%clk 0:01:27]}  Qc7 {[%clk 0:01:53]} 22. c5 {[%clk 0:01:23]}  d5 {[%clk 0:01:47]} 23. Nxd4 {[%clk 0:00:58]}  dxe4 {[%clk 0:01:46]} 24. dxe4 {[%clk 0:00:58]}  Qe5 {[%clk 0:01:46]} 25. Nf3 {[%clk 0:00:55]}  Qxe4 {[%clk 0:01:40]} 26. Bd3 {[%clk 0:00:55]}  Qf4 {[%clk 0:01:35]} 27. Nb6 {[%clk 0:00:52]}  Bxb6 {[%clk 0:01:34]} 28. Rxa8 {[%clk 0:00:51]}  Rxa8 {[%clk 0:01:33]} 29. cxb6 {[%clk 0:00:52]}  Rb8 {[%clk 0:01:31]} 30. Qc5 {[%clk 0:00:38]}  Bxh3 {[%clk 0:01:25]} 31. Rb1 {[%clk 0:00:14]}  Bxg2 {[%clk 0:01:22]} 32. Qe5 {[%clk 0:00:12]}  Qxe5 {[%clk 0:01:02]} 33. Nxe5 {[%clk 0:00:13]}  Bd5 {[%clk 0:01:02]} 34. Bc4 {[%clk 0:00:12]}  Bxc4 {[%clk 0:01:00]} 35. Nxc6 {[%clk 0:00:13]}  Rb7 {[%clk 0:00:58]} 36. Na5 {[%clk 0:00:13]}  Bd5 {[%clk 0:00:52]} 37. Nxb7 {[%clk 0:00:12]}  Bxb7 {[%clk 0:00:53]} 38. Ra1 {[%clk 0:00:10]}  Ne4 {[%clk 0:00:50]} 39. Rc1 {[%clk 0:00:07]}  Kf8 {[%clk 0:00:49]} 40. Rc7 {[%clk 0:00:07]}  Bd5 {[%clk 0:00:44]} 41. Rd7 {[%clk 0:00:06]}  Bc6 {[%clk 0:00:33]} 42. Rc7 {[%clk 0:00:06]}  Bd5 {[%clk 0:00:29]} 43. Rd7 {[%clk 0:00:06]}  Bc6 {[%clk 0:00:06]} 44. Rc7 {[%clk 0:00:06]}  Bd5 {[%clk 0:00:04]} 1/2-1/2


[Site "https://www.chess.com"]

[Event "Titled Tuesday Blitz August 08 Late 2023"]
[White "Graif, William"]
[Black "Troff, Kayden"]
[WhiteFideId "2609835"]
[BlackFideId "2047896"]
[WhiteElo "2561"]
[BlackElo "2799"]
[Result "1/2-1/2"]
[Round "4"]
[TimeControl "180+1"]
[Date "2023.08.08"]
[WhiteClock "0:00:14"]
[BlackClock "0:00:10"]
[Board "44"]

1. e4 {[%clk 0:03:00]}  c5 {[%clk 0:02:59]} 2. Nc3 {[%clk 0:03:00]}  g6 {[%clk 0:02:59]} 3. Bc4 {[%clk 0:02:58]}  Bg7 {[%clk 0:02:59]} 4. h4 {[%clk 0:02:58]}  h6 {[%clk 0:02:56]} 5. Qf3 {[%clk 0:02:55]}  e6 {[%clk 0:02:54]} 6. d4 {[%clk 0:02:54]}  d6 {[%clk 0:02:23]} 7. dxc5 {[%clk 0:02:19]}  dxc5 {[%clk 0:02:22]} 8. Bf4 {[%clk 0:02:16]}  Ne7 {[%clk 0:02:17]} 9. Nb5 {[%clk 0:01:44]}  O-O {[%clk 0:02:17]} 10. Nc7 {[%clk 0:01:13]}  e5 {[%clk 0:02:16]} 11. Nxa8 {[%clk 0:01:11]}  exf4 {[%clk 0:02:16]} 12. Qxf4 {[%clk 0:01:08]}  Nbc6 {[%clk 0:02:07]} 13. Nf3 {[%clk 0:00:53]}  b5 {[%clk 0:01:47]} 14. Be2 {[%clk 0:00:38]}  Nd4 {[%clk 0:01:10]} 15. Nxd4 {[%clk 0:00:35]}  Qxd4 {[%clk 0:01:11]} 16. O-O {[%clk 0:00:15]}  Bb7 {[%clk 0:00:58]} 17. Qc7 {[%clk 0:00:12]}  Bxa8 {[%clk 0:00:41]} 18. Qxe7 {[%clk 0:00:12]}  Bf6 {[%clk 0:00:34]} 19. c3 {[%clk 0:00:10]}  Bxe7 {[%clk 0:00:30]} 20. cxd4 {[%clk 0:00:11]}  cxd4 {[%clk 0:00:31]} 21. Bxb5 {[%clk 0:00:10]}  Bxh4 {[%clk 0:00:30]} 22. f3 {[%clk 0:00:09]}  Rb8 {[%clk 0:00:30]} 23. a4 {[%clk 0:00:10]}  Bg5 {[%clk 0:00:22]} 24. Rfd1 {[%clk 0:00:10]}  Be3+ {[%clk 0:00:22]} 25. Kf1 {[%clk 0:00:10]}  a6 {[%clk 0:00:21]} 26. Bxa6 {[%clk 0:00:11]}  Rxb2 {[%clk 0:00:21]} 27. Be2 {[%clk 0:00:10]}  f5 {[%clk 0:00:11]} 28. Rdb1 {[%clk 0:00:10]}  Rd2 {[%clk 0:00:08]} 29. Rb8+ {[%clk 0:00:10]}  Kf7 {[%clk 0:00:08]} 30. Rxa8 {[%clk 0:00:11]}  d3 {[%clk 0:00:09]} 31. Bxd3 {[%clk 0:00:10]}  Rxd3 {[%clk 0:00:10]} 32. exf5 {[%clk 0:00:11]}  Rd2 {[%clk 0:00:09]} 33. a5 {[%clk 0:00:12]}  Rf2+ {[%clk 0:00:08]} 34. Ke1 {[%clk 0:00:12]}  Rxg2 {[%clk 0:00:08]} 35. fxg6+ {[%clk 0:00:13]}  Kxg6 {[%clk 0:00:08]} 36. Ra4 {[%clk 0:00:13]}  Bg5 {[%clk 0:00:07]} 37. Rg4 {[%clk 0:00:13]}  Ra2 {[%clk 0:00:07]} 38. f4 {[%clk 0:00:13]}  Kf5 {[%clk 0:00:07]} 39. Rxg5+ {[%clk 0:00:11]}  hxg5 {[%clk 0:00:08]} 40. fxg5 {[%clk 0:00:12]}  Kxg5 {[%clk 0:00:09]} 41. a6 {[%clk 0:00:12]}  Kg6 {[%clk 0:00:09]} 42. a7 {[%clk 0:00:13]}  Kg7 {[%clk 0:00:10]} 43. Kd1 {[%clk 0:00:13]}  Ra1+ {[%clk 0:00:10]} 44. Kc2 {[%clk 0:00:14]}  Ra2+ {[%clk 0:00:11]} 45. Kb3 {[%clk 0:00:14]}  Ra1 {[%clk 0:00:12]} 46. Kb4 {[%clk 0:00:14]}  Rb1+ {[%clk 0:00:10]} 1/2-1/2


[Site "https://www.chess.com"]

[Event "Titled Tuesday Blitz August 08 Late 2023"]
[White "Czerw, Dawid"]
[Black "Kuzmicz, Krystian"]
[WhiteFideId "1145746"]
[BlackFideId "1119125"]
[WhiteElo "2542"]
[BlackElo "2752"]
[Result "0-1"]
[Round "4"]
[TimeControl "180+1"]
[Date "2023.08.08"]
[WhiteClock "0:00:00"]
[BlackClock "0:00:25"]
[Board "47"]

1. e4 {[%clk 0:03:00]}  c5 {[%clk 0:02:56]} 2. Nf3 {[%clk 0:03:00]}  e6 {[%clk 0:02:55]} 3. d4 {[%clk 0:03:00]}  cxd4 {[%clk 0:02:55]} 4. Nxd4 {[%clk 0:03:01]}  Nf6 {[%clk 0:02:56]} 5. Nc3 {[%clk 0:03:01]}  Nc6 {[%clk 0:02:56]} 6. Nxc6 {[%clk 0:03:01]}  bxc6 {[%clk 0:02:56]} 7. e5 {[%clk 0:03:01]}  Nd5 {[%clk 0:02:56]} 8. Ne4 {[%clk 0:03:02]}  Qa5+ {[%clk 0:02:55]} 9. Bd2 {[%clk 0:02:55]}  Nb4 {[%clk 0:02:50]} 10. Bc3 {[%clk 0:02:49]}  Qd5 {[%clk 0:02:45]} 11. f3 {[%clk 0:02:32]}  Qxd1+ {[%clk 0:02:35]} 12. Kxd1 {[%clk 0:02:25]}  Nd5 {[%clk 0:02:34]} 13. Bd2 {[%clk 0:02:24]}  f5 {[%clk 0:02:34]} 14. Nf2 {[%clk 0:02:21]}  d6 {[%clk 0:02:30]} 15. c4 {[%clk 0:02:19]}  Nc7 {[%clk 0:02:25]} 16. Nd3 {[%clk 0:02:15]}  Ba6 {[%clk 0:02:19]} 17. b3 {[%clk 0:02:11]}  d5 {[%clk 0:02:17]} 18. Nb4 {[%clk 0:02:02]}  Bb7 {[%clk 0:02:16]} 19. cxd5 {[%clk 0:01:56]}  Nxd5 {[%clk 0:02:08]} 20. Na6 {[%clk 0:01:49]}  Bxa6 {[%clk 0:02:03]} 21. Bxa6 {[%clk 0:01:48]}  Kd7 {[%clk 0:02:02]} 22. Rc1 {[%clk 0:01:46]}  Rb8 {[%clk 0:02:00]} 23. Ke2 {[%clk 0:01:40]}  Bb4 {[%clk 0:01:54]} 24. Rhd1 {[%clk 0:01:27]}  Rb6 {[%clk 0:01:46]} 25. Bc4 {[%clk 0:01:23]}  Bxd2 {[%clk 0:01:46]} 26. Rxd2 {[%clk 0:01:22]}  f4 {[%clk 0:01:26]} 27. Bxd5 {[%clk 0:01:20]}  exd5 {[%clk 0:01:25]} 28. Rd4 {[%clk 0:01:15]}  g5 {[%clk 0:01:24]} 29. h4 {[%clk 0:01:14]}  h6 {[%clk 0:01:23]} 30. Rh1 {[%clk 0:01:13]}  Re8 {[%clk 0:01:23]} 31. hxg5 {[%clk 0:01:08]}  Rxe5+ {[%clk 0:01:22]} 32. Kd2 {[%clk 0:01:08]}  hxg5 {[%clk 0:01:23]} 33. Rh7+ {[%clk 0:01:06]}  Re7 {[%clk 0:01:23]} 34. Rh5 {[%clk 0:01:04]}  Rg7 {[%clk 0:01:22]} 35. Ra4 {[%clk 0:01:04]}  a6 {[%clk 0:01:22]} 36. Rh6 {[%clk 0:01:00]}  Kc7 {[%clk 0:01:18]} 37. Ra5 {[%clk 0:00:45]}  Kb7 {[%clk 0:01:14]} 38. Rd6 {[%clk 0:00:41]}  Rb5 {[%clk 0:01:04]} 39. Ra4 {[%clk 0:00:38]}  Kb6 {[%clk 0:00:59]} 40. Rd8 {[%clk 0:00:30]}  a5 {[%clk 0:00:50]} 41. Rb8+ {[%clk 0:00:24]}  Kc5 {[%clk 0:00:49]} 42. Ra8 {[%clk 0:00:23]}  g4 {[%clk 0:00:47]} 43. R4xa5 {[%clk 0:00:03]}  gxf3 {[%clk 0:00:44]} 44. gxf3 {[%clk 0:00:04]}  Rg2+ {[%clk 0:00:42]} 45. Kd3 {[%clk 0:00:05]}  Rf2 {[%clk 0:00:41]} 46. Rxb5+ {[%clk 0:00:04]}  Kxb5 {[%clk 0:00:39]} 47. a3 {[%clk 0:00:02]}  Rxf3+ {[%clk 0:00:37]} 48. Kd4 {[%clk 0:00:02]}  Kb6 {[%clk 0:00:25]} 49. Rb8+ {[%clk 0:00:00]}  Kc7 {[%clk 0:00:25]} 0-1


[Site "https://www.chess.com"]

[Event "Titled Tuesday Blitz August 08 Late 2023"]
[White "Perske, Thore"]
[Black "Golubka, Petro"]
[WhiteFideId "12902195"]
[BlackFideId "14114224"]
[WhiteElo "2539"]
[BlackElo "2752"]
[Result "0-1"]
[Round "4"]
[TimeControl "180+1"]
[Date "2023.08.08"]
[WhiteClock "0:00:07"]
[BlackClock "0:01:15"]
[Board "48"]

1. d4 {[%clk 0:03:00]}  Nf6 {[%clk 0:02:45]} 2. g3 {[%clk 0:02:59]}  g6 {[%clk 0:02:46]} 3. Bg2 {[%clk 0:02:59]}  Bg7 {[%clk 0:02:47]} 4. e4 {[%clk 0:02:59]}  O-O {[%clk 0:02:48]} 5. Nc3 {[%clk 0:02:59]}  d6 {[%clk 0:02:48]} 6. Nge2 {[%clk 0:02:59]}  e5 {[%clk 0:02:48]} 7. h3 {[%clk 0:02:59]}  c5 {[%clk 0:02:47]} 8. dxc5 {[%clk 0:02:51]}  dxc5 {[%clk 0:02:46]} 9. Qxd8 {[%clk 0:02:49]}  Rxd8 {[%clk 0:02:47]} 10. Bg5 {[%clk 0:02:49]}  Be6 {[%clk 0:02:36]} 11. Nd5 {[%clk 0:02:46]}  Bxd5 {[%clk 0:02:32]} 12. exd5 {[%clk 0:02:42]}  h6 {[%clk 0:02:31]} 13. Be3 {[%clk 0:02:30]}  Na6 {[%clk 0:02:20]} 14. Nc3 {[%clk 0:02:19]}  Ne8 {[%clk 0:02:09]} 15. Bf1 {[%clk 0:02:10]}  Nd6 {[%clk 0:02:10]} 16. Bxa6 {[%clk 0:02:06]}  bxa6 {[%clk 0:02:11]} 17. Bxc5 {[%clk 0:02:05]}  Nc4 {[%clk 0:02:09]} 18. O-O-O {[%clk 0:01:42]}  Rac8 {[%clk 0:02:07]} 19. Be7 {[%clk 0:01:27]}  Rd7 {[%clk 0:02:05]} 20. d6 {[%clk 0:01:27]}  e4 {[%clk 0:02:05]} 21. Na4 {[%clk 0:00:37]}  Be5 {[%clk 0:01:56]} 22. Rd5 {[%clk 0:00:31]}  Bxd6 {[%clk 0:01:52]} 23. Bxd6 {[%clk 0:00:30]}  Rxd6 {[%clk 0:01:53]} 24. Rhd1 {[%clk 0:00:28]}  Rf6 {[%clk 0:01:52]} 25. Rd8+ {[%clk 0:00:25]}  Rxd8 {[%clk 0:01:51]} 26. Rxd8+ {[%clk 0:00:25]}  Kg7 {[%clk 0:01:52]} 27. Rd4 {[%clk 0:00:24]}  e3 {[%clk 0:01:48]} 28. fxe3 {[%clk 0:00:19]}  Nxe3 {[%clk 0:01:46]} 29. Rd3 {[%clk 0:00:13]}  Nc4 {[%clk 0:01:42]} 30. b3 {[%clk 0:00:12]}  Ne5 {[%clk 0:01:40]} 31. Rd2 {[%clk 0:00:11]}  Rf3 {[%clk 0:01:38]} 32. Rg2 {[%clk 0:00:11]}  a5 {[%clk 0:01:36]} 33. c4 {[%clk 0:00:11]}  h5 {[%clk 0:01:34]} 34. c5 {[%clk 0:00:08]}  g5 {[%clk 0:01:33]} 35. Rc2 {[%clk 0:00:05]}  Nc6 {[%clk 0:01:32]} 36. Rc3 {[%clk 0:00:05]}  Rf2 {[%clk 0:01:31]} 37. h4 {[%clk 0:00:05]}  gxh4 {[%clk 0:01:29]} 38. gxh4 {[%clk 0:00:06]}  Rh2 {[%clk 0:01:30]} 39. Rc4 {[%clk 0:00:05]}  f5 {[%clk 0:01:30]} 40. a3 {[%clk 0:00:05]}  Kf6 {[%clk 0:01:28]} 41. b4 {[%clk 0:00:05]}  a6 {[%clk 0:01:28]} 42. Nb6 {[%clk 0:00:03]}  Ke5 {[%clk 0:01:27]} 43. Nd7+ {[%clk 0:00:04]}  Kd5 {[%clk 0:01:26]} 44. Rc2 {[%clk 0:00:04]}  Rxh4 {[%clk 0:01:24]} 45. Nf6+ {[%clk 0:00:04]}  Ke5 {[%clk 0:01:24]} 46. Nd7+ {[%clk 0:00:04]}  Kd4 {[%clk 0:01:23]} 47. Nf6 {[%clk 0:00:04]}  f4 {[%clk 0:01:22]} 48. Rd2+ {[%clk 0:00:02]}  Kc4 {[%clk 0:01:21]} 49. Rc2+ {[%clk 0:00:02]}  Kb3 {[%clk 0:01:21]} 50. Rd2 {[%clk 0:00:02]}  Rh1+ {[%clk 0:01:19]} 51. Rd1 {[%clk 0:00:03]}  Rxd1+ {[%clk 0:01:18]} 52. Kxd1 {[%clk 0:00:04]}  h4 {[%clk 0:01:19]} 53. bxa5 {[%clk 0:00:04]}  h3 {[%clk 0:01:18]} 54. Ng4 {[%clk 0:00:05]}  Kxa3 {[%clk 0:01:16]} 55. Ke2 {[%clk 0:00:05]}  Kb4 {[%clk 0:01:16]} 56. Kf3 {[%clk 0:00:06]}  Kxc5 {[%clk 0:01:12]} 57. Kxf4 {[%clk 0:00:06]}  Nxa5 {[%clk 0:01:13]} 58. Kg3 {[%clk 0:00:06]}  Nb3 {[%clk 0:01:14]} 59. Ne3 {[%clk 0:00:06]}  Kd4 {[%clk 0:01:14]} 60. Nc2+ {[%clk 0:00:06]}  Kc3 {[%clk 0:01:14]} 61. Na3 {[%clk 0:00:06]}  Nd2 {[%clk 0:01:12]} 62. Kxh3 {[%clk 0:00:06]}  Kb2 {[%clk 0:01:12]} 63. Nb5 {[%clk 0:00:06]}  axb5 {[%clk 0:01:12]} 64. Kg2 {[%clk 0:00:06]}  b4 {[%clk 0:01:12]} 65. Kf2 {[%clk 0:00:07]}  b3 {[%clk 0:01:13]} 66. Ke2 {[%clk 0:00:08]}  Kc2 {[%clk 0:01:14]} 67. Ke1 {[%clk 0:00:07]}  b2 {[%clk 0:01:15]} 0-1


[Site "https://www.chess.com"]

[Event "Titled Tuesday Blitz August 08 Late 2023"]
[White "ArtemDyachuk"]
[Black "Nazari, Arad"]
[BlackFideId "12577324"]
[WhiteElo "2534"]
[BlackElo "2750"]
[Result "0-1"]
[Round "4"]
[TimeControl "180+1"]
[Date "2023.08.08"]
[WhiteClock "0:00:01"]
[BlackClock "0:00:04"]
[Board "50"]

1. e4 {[%clk 0:03:00]}  e6 {[%clk 0:02:54]} 2. d4 {[%clk 0:03:00]}  d5 {[%clk 0:02:53]} 3. e5 {[%clk 0:03:00]}  c5 {[%clk 0:02:53]} 4. c3 {[%clk 0:03:00]}  Nc6 {[%clk 0:02:52]} 5. Nf3 {[%clk 0:03:00]}  Bd7 {[%clk 0:02:46]} 6. Be2 {[%clk 0:03:00]}  Nge7 {[%clk 0:02:46]} 7. Na3 {[%clk 0:03:00]}  cxd4 {[%clk 0:02:44]} 8. cxd4 {[%clk 0:02:59]}  f6 {[%clk 0:02:45]} 9. O-O {[%clk 0:02:54]}  fxe5 {[%clk 0:02:39]} 10. dxe5 {[%clk 0:02:52]}  Ng6 {[%clk 0:02:39]} 11. Re1 {[%clk 0:02:45]}  Bc5 {[%clk 0:02:27]} 12. Bd3 {[%clk 0:02:35]}  O-O {[%clk 0:02:16]} 13. Qc2 {[%clk 0:02:33]}  Nb4 {[%clk 0:02:08]} 14. Qd2 {[%clk 0:02:23]}  Nxd3 {[%clk 0:02:07]} 15. Qxd3 {[%clk 0:02:24]}  Nh4 {[%clk 0:02:07]} 16. Nd4 {[%clk 0:02:04]}  Nf5 {[%clk 0:01:49]} 17. Nxf5 {[%clk 0:01:57]}  Rxf5 {[%clk 0:01:50]} 18. Be3 {[%clk 0:01:43]}  Bxa3 {[%clk 0:01:13]} 19. Qxa3 {[%clk 0:01:44]}  Rxe5 {[%clk 0:01:09]} 20. Bd4 {[%clk 0:01:43]}  Rxe1+ {[%clk 0:01:07]} 21. Rxe1 {[%clk 0:01:44]}  Qf8 {[%clk 0:01:01]} 22. Qg3 {[%clk 0:01:40]}  Qf7 {[%clk 0:00:50]} 23. h4 {[%clk 0:01:39]}  b6 {[%clk 0:00:48]} 24. Re5 {[%clk 0:01:33]}  h6 {[%clk 0:00:40]} 25. Re3 {[%clk 0:01:23]}  Kh7 {[%clk 0:00:19]} 26. Qe5 {[%clk 0:01:00]}  Rg8 {[%clk 0:00:17]} 27. Rg3 {[%clk 0:00:41]}  Bc8 {[%clk 0:00:16]} 28. h5 {[%clk 0:00:37]}  Ba6 {[%clk 0:00:11]} 29. Rf3 {[%clk 0:00:27]}  Qe7 {[%clk 0:00:08]} 30. Re3 {[%clk 0:00:19]}  Qf7 {[%clk 0:00:06]} 31. Rf3 {[%clk 0:00:16]}  Qd7 {[%clk 0:00:05]} 32. Rg3 {[%clk 0:00:14]}  Qf7 {[%clk 0:00:01]} 33. Rg6 {[%clk 0:00:13]}  Bd3 {[%clk 0:00:01]} 34. Rg3 {[%clk 0:00:11]}  Bf5 {[%clk 0:00:02]} 35. Ra3 {[%clk 0:00:08]}  Qxh5 {[%clk 0:00:02]} 36. Rxa7 {[%clk 0:00:07]}  Qd1+ {[%clk 0:00:02]} 37. Kh2 {[%clk 0:00:07]}  Qh5+ {[%clk 0:00:03]} 38. Kg1 {[%clk 0:00:07]}  Qg6 {[%clk 0:00:04]} 39. Bxb6 {[%clk 0:00:05]}  Be4 {[%clk 0:00:04]} 40. g3 {[%clk 0:00:05]}  Rc8 {[%clk 0:00:03]} 41. Rc7 {[%clk 0:00:02]}  Rxc7 {[%clk 0:00:04]} 42. Qxc7 {[%clk 0:00:01]}  Qh5 {[%clk 0:00:04]} 43. Kf1 {[%clk 0:00:01]}  Qd1# {[%clk 0:00:04]} 0-1


[Site "https://www.chess.com"]

[Event "Titled Tuesday Blitz August 08 Late 2023"]
[White "Tejedor Fuente, Enrique"]
[Black "reevecanada"]
[WhiteFideId "2299100"]
[WhiteElo "2750"]
[BlackElo "2531"]
[Result "1-0"]
[Round "4"]
[TimeControl "180+1"]
[Date "2023.08.08"]
[WhiteClock "0:00:20"]
[BlackClock "0:00:26"]
[Board "51"]

1. c4 {[%clk 0:02:58]}  e5 {[%clk 0:02:58]} 2. d3 {[%clk 0:02:55]}  Nf6 {[%clk 0:02:54]} 3. Nf3 {[%clk 0:02:51]}  Nc6 {[%clk 0:02:50]} 4. g3 {[%clk 0:02:39]}  d5 {[%clk 0:02:48]} 5. cxd5 {[%clk 0:02:38]}  Nxd5 {[%clk 0:02:48]} 6. Bg2 {[%clk 0:02:39]}  Be7 {[%clk 0:02:46]} 7. Nc3 {[%clk 0:02:38]}  Be6 {[%clk 0:02:44]} 8. O-O {[%clk 0:02:37]}  O-O {[%clk 0:02:43]} 9. Bd2 {[%clk 0:02:34]}  Qd7 {[%clk 0:02:43]} 10. h4 {[%clk 0:02:33]}  f6 {[%clk 0:02:42]} 11. Kh2 {[%clk 0:02:31]}  Rad8 {[%clk 0:02:40]} 12. a3 {[%clk 0:02:12]}  a5 {[%clk 0:02:38]} 13. Rc1 {[%clk 0:02:10]}  b6 {[%clk 0:02:35]} 14. Ne1 {[%clk 0:02:08]}  Nd4 {[%clk 0:02:33]} 15. e3 {[%clk 0:01:59]}  Nxc3 {[%clk 0:02:22]} 16. Rxc3 {[%clk 0:01:52]}  Nb5 {[%clk 0:02:20]} 17. Bc6 {[%clk 0:01:34]}  Nxc3 {[%clk 0:02:16]} 18. Bxd7 {[%clk 0:01:33]}  Nxd1 {[%clk 0:02:16]} 19. Bxe6+ {[%clk 0:01:34]}  Kh8 {[%clk 0:02:16]} 20. Bc1 {[%clk 0:01:32]}  e4 {[%clk 0:02:15]} 21. d4 {[%clk 0:01:18]}  c5 {[%clk 0:02:05]} 22. Nc2 {[%clk 0:01:17]}  cxd4 {[%clk 0:02:01]} 23. Nxd4 {[%clk 0:01:17]}  Nxf2 {[%clk 0:02:00]} 24. Rxf2 {[%clk 0:01:17]}  Bc5 {[%clk 0:02:00]} 25. Rd2 {[%clk 0:01:05]}  g6 {[%clk 0:01:53]} 26. b3 {[%clk 0:01:03]}  Rd6 {[%clk 0:01:50]} 27. Bc4 {[%clk 0:01:02]}  Bxd4 {[%clk 0:01:46]} 28. Rxd4 {[%clk 0:00:46]}  Rxd4 {[%clk 0:01:43]} 29. exd4 {[%clk 0:00:47]}  Rc8 {[%clk 0:01:43]} 30. a4 {[%clk 0:00:45]}  Rd8 {[%clk 0:01:36]} 31. d5 {[%clk 0:00:40]}  Kg7 {[%clk 0:01:33]} 32. Be3 {[%clk 0:00:38]}  Rd6 {[%clk 0:01:32]} 33. Bf4 {[%clk 0:00:38]}  Rd7 {[%clk 0:01:20]} 34. Kg2 {[%clk 0:00:33]}  h6 {[%clk 0:01:16]} 35. g4 {[%clk 0:00:26]}  g5 {[%clk 0:01:03]} 36. hxg5 {[%clk 0:00:27]}  hxg5 {[%clk 0:01:02]} 37. Bb8 {[%clk 0:00:27]}  Rb7 {[%clk 0:00:52]} 38. Bg3 {[%clk 0:00:25]}  Kf8 {[%clk 0:00:37]} 39. d6 {[%clk 0:00:25]}  Ke8 {[%clk 0:00:36]} 40. Bd5 {[%clk 0:00:24]}  Rh7 {[%clk 0:00:26]} 41. Bxe4 {[%clk 0:00:22]}  Rh8 {[%clk 0:00:27]} 42. Bf5 {[%clk 0:00:21]}  Kd8 {[%clk 0:00:23]} 43. Bf2 {[%clk 0:00:21]}  Ke8 {[%clk 0:00:19]} 44. Bxb6 {[%clk 0:00:21]}  Kf7 {[%clk 0:00:19]} 45. d7 {[%clk 0:00:20]}  Ke7 {[%clk 0:00:20]} 46. Bxa5 {[%clk 0:00:19]}  Ra8 {[%clk 0:00:20]} 47. d8=Q+ {[%clk 0:00:19]}  Rxd8 {[%clk 0:00:20]} 48. Bxd8+ {[%clk 0:00:20]}  Kxd8 {[%clk 0:00:20]} 49. Bc2 {[%clk 0:00:20]}  Ke7 {[%clk 0:00:21]} 50. Kf3 {[%clk 0:00:20]}  Kf8 {[%clk 0:00:22]} 51. Ke4 {[%clk 0:00:21]}  Kg7 {[%clk 0:00:23]} 52. a5 {[%clk 0:00:21]}  Kh6 {[%clk 0:00:24]} 53. a6 {[%clk 0:00:21]}  Kg7 {[%clk 0:00:24]} 54. a7 {[%clk 0:00:22]}  Kh6 {[%clk 0:00:25]} 55. a8=Q {[%clk 0:00:22]}  Kg7 {[%clk 0:00:25]} 56. Kd5 {[%clk 0:00:21]}  Kh6 {[%clk 0:00:26]} 57. Qh8# {[%clk 0:00:20]} 1-0


[Site "https://www.chess.com"]